fUSD/lending_fUSD_20240712
["ID","MTS","AMOUNT","RATE_DAILY","PERIOD"]
[331872792,1720806634149,-500.0,0.00013798,2]
[331872793,1720806634159,-500.0,0.00013798,2]
[331872794,1720806634168,-500.0,0.00013798,2]
[331872795,1720806634177,-500.0,0.00013798,2]
[331872796,1720806634187,-500.0,0.00013798,2]
[331872797,1720806634196,-500.0,0.00013798,2]
[331872798,1720806634205,-500.0,0.00013798,2]
[331872799,1720806634215,-500.0,0.00013798,2]
[331872800,1720806634224,-500.0,0.00013798,2]
[331872801,1720806634232,-500.0,0.00013798,2]
[331872802,1720806634242,-442.58,0.00013798,2]
[331872803,1720806634252,-500.0,0.00013798,2]
[331872804,1720806634261,-500.0,0.00013798,2]
[331872805,1720806634270,-500.0,0.00013798,2]
[331872806,1720806634279,-500.0,0.00013798,2]
[331872807,1720806634287,-500.0,0.00013798,2]
[331872808,1720806634296,-500.0,0.00013798,2]
[331872809,1720806634305,-500.0,0.00013798,2]
[331872810,1720806634314,-500.0,0.00013798,2]
[331872811,1720806634323,-500.0,0.00013798,2]
[331872812,1720806634332,-500.0,0.00013798,2]
[331872813,1720806634341,-500.0,0.00013798,2]
[331872814,1720806634350,-500.0,0.00013798,2]
[331872815,1720806634360,-619.50841167,0.00013798,2]
[331872816,1720806634369,-500.0,0.00013798,2]
[331872817,1720806634378,-500.0,0.00013798,2]
[331872818,1720806634387,-500.0,0.00013798,2]
[331872819,1720806634397,-500.0,0.00013798,2]
[331872820,1720806634406,-500.0,0.00013798,2]
[331872821,1720806634415,-500.0,0.00013798,2]
[331872822,1720806634424,-500.0,0.00013798,2]
[331872823,1720806634433,-500.0,0.00013798,2]
[331872824,1720806634442,-500.0,0.00013798,2]
[331872825,1720806634451,-500.0,0.00013798,2]
[331872826,1720806634462,-500.0,0.00013798,2]
[331872827,1720806634471,-557.48414055,0.00013798,2]
[331872828,1720806634480,-500.0,0.00013798,2]
[331872829,1720806634489,-500.0,0.00013798,2]
[331872830,1720806634499,-500.0,0.00013798,2]
[331872831,1720806634508,-174.64627088,0.00013798,2]
[331872832,1720806634517,-500.0,0.00013798,2]
[331872833,1720806634526,-500.0,0.00013798,2]
[331872834,1720806634536,-500.0,0.00013798,2]
[331872835,1720806634545,-500.0,0.00013798,2]
[331872836,1720806634554,-500.0,0.00013798,2]
[331872837,1720806634722,-500.0,0.00013798,2]
[331872838,1720806634732,-500.0,0.00013798,2]
[331872839,1720806634741,-500.0,0.00013798,2]
[331872840,1720806634751,-500.0,0.00013798,2]
[331872841,1720806634760,-500.0,0.00013798,2]
[331872842,1720806634769,-500.0,0.00013798,2]
[331872843,1720806634778,-500.0,0.00013798,2]
[331872844,1720806634788,-500.0,0.00013798,2]
[331872845,1720806634797,-542.13394577,0.00013798,2]
[331872846,1720806634806,-166.12923383,0.00013798,2]
[331872847,1720806634816,-500.0,0.00013798,2]
[331872848,1720806634825,-500.0,0.00013798,2]
[331872849,1720806634834,-500.0,0.00013798,2]
[331872850,1720806634843,-500.0,0.00013798,2]
[331872851,1720806634852,-500.0,0.00013798,2]
[331872852,1720806634861,-500.0,0.00013798,2]
[331872853,1720806634870,-500.0,0.00013798,2]
[331872854,1720806634879,-550.0,0.00013799,2]
[331872855,1720806634888,-500.0,0.00013799,2]
[331872856,1720806634898,-276.13806124,0.00013799,2]
[331872857,1720806634908,-539.7973708,0.00013799,2]
[331872858,1720806634921,-500.0,0.00013799,2]
[331872859,1720806634930,-500.0,0.00013799,2]
[331872860,1720806634940,-500.0,0.00013799,2]
[331872861,1720806634949,-500.0,0.00013799,2]
[331872862,1720806634959,-500.0,0.00013799,2]
[331872863,1720806634968,-225.62639715,0.00013799,2]
[331872864,1720806634977,-500.0,0.00013799,2]
[331872865,1720806634987,-500.0,0.00013799,2]
[331872866,1720806634996,-300.77,0.00013799,2]
[331872867,1720806635006,-500.0,0.00013799,2]
[331872868,1720806635015,-500.0,0.00013799,2]
[331872869,1720806635024,-500.0,0.00013799,2]
[331872870,1720806635034,-500.0,0.00013799,2]
[331872871,1720806635043,-500.0,0.00013799,2]
[331872872,1720806635052,-500.0,0.00013799,2]
[331872873,1720806635061,-500.0,0.00013799,2]
[331872874,1720806635070,-500.0,0.00013799,2]
[331872875,1720806635079,-500.0,0.00013799,2]
[331872876,1720806635089,-500.0,0.00013799,2]
[331872877,1720806635098,-500.0,0.00013799,2]
[331872878,1720806635108,-500.0,0.00013799,2]
[331872879,1720806635117,-210.99,0.00013799,2]
[331872880,1720806635126,-500.0,0.00013799,2]
[331872881,1720806635135,-500.0,0.00013799,2]
[331872882,1720806635144,-150.0,0.00013799,2]
[331872883,1720806635153,-500.0,0.00013799,2]
[331872884,1720806635162,-500.0,0.00013799,2]
[331872885,1720806635171,-500.0,0.00013799,2]
[331872886,1720806635180,-419.94076039,0.00013799,2]
[331872887,1720806635189,-1238.96,0.00013799,2]
[331872888,1720806635199,-500.0,0.00013799,2]
[331872889,1720806635210,-2244.52,0.00013799,2]
[331872890,1720806635218,-500.0,0.00013799,2]
[331872891,1720806635227,-500.0,0.00013799,2]
[331872892,1720806635236,-526.39,0.00013799,2]
[331872893,1720806635245,-638.22,0.00013799,2]
[331872894,1720806635254,-500.0,0.00013799,2]
[331872895,1720806635263,-500.0,0.00013799,2]
[331872896,1720806635272,-500.0,0.00013799,2]
[331872897,1720806635281,-500.0,0.00013799,2]
[331872898,1720806635290,-508.55,0.00013799,2]
[331872899,1720806635299,-500.0,0.00013799,2]
[331872900,1720806635309,-500.0,0.00013799,2]
[331872901,1720806635318,-500.0,0.00013799,2]
[331872902,1720806635326,-500.0,0.00013799,2]
[331872903,1720806635336,-500.0,0.00013799,2]
[331872904,1720806635345,-500.0,0.00013799,2]
[331872905,1720806635355,-1314.17512758,0.00013799,2]
[331872906,1720806635364,-500.0,0.00013799,2]
[331872907,1720806635373,-1314.17512755,0.00013799,2]
[331872908,1720806635382,-500.0,0.00013799,2]
[331872909,1720806635390,-572.3,0.00013799,2]
[331872910,1720806635399,-500.0,0.00013799,2]
[331872911,1720806635408,-500.0,0.00013799,2]
[331872912,1720806635418,-500.0,0.00013799,2]
[331872913,1720806635427,-500.0,0.00013799,2]
[331872914,1720806635436,-500.0,0.00013799,2]
[331872915,1720806635445,-500.0,0.00013799,2]
[331872916,1720806635455,-624.51,0.00013799,2]
[331872917,1720806635464,-500.0,0.00013799,2]
[331872918,1720806635473,-852.0,0.000138,2]
[331872919,1720806635482,-500089.29079489,0.000138,2]
[331872920,1720806635692,-659.47,0.000138,2]
[331872921,1720806635703,-274.01125339,0.000138,2]
[331872922,1720806635714,-6945.79989758,0.000138,2]
[331872923,1720806635726,-274.01125339,0.000138,2]
[331872957,1720806638871,-401.79111163,0.000138,2]
[331872958,1720806639024,-6779.55055981,0.000138,2]
[331873063,1720806640141,-5699.29289489,0.000138,2]
[331873072,1720806640227,-3096929.31368959,0.000138,2]
[331873074,1720806640237,-17360.20767643,0.000138,2]
[331873076,1720806640246,-2000.0,0.000138,2]
[331873078,1720806640256,-200.0,0.000138,2]
[331873080,1720806640266,-190028.33345509,0.000138,3]
[331873372,1720806643104,-600.0,0.00013759,2]
[331873374,1720806643115,-778.84,0.000138,3]
[331873377,1720806643129,-478.6711612,0.000138,3]
[331873379,1720806643140,-515.45222906,0.000138,3]
[331873381,1720806643152,-627.59413878,0.000138,3]
[331873383,1720806643164,-4119.17311814,0.000138,3]
[331873516,1720806644416,-1742.03770907,0.00013698,2]
[331873518,1720806644425,-15628.86511947,0.000138,3]
[331873522,1720806644449,-500.0,0.000138,3]
[331873524,1720806644460,-1138.50441589,0.000138,3]
[331873732,1720806646190,-1756.75259974,0.000138,3]
[331873736,1720806646223,-273.72011597,0.000138,3]
[331873755,1720806646385,-377.33058206,0.000138,3]
[331873768,1720806646557,-247.92050673,0.000137,2]
[331873769,1720806646567,-242.70667047,0.000138,3]
[331873770,1720806646593,-3063.50000002,0.000138,3]
[331873771,1720806646604,-602.00844115,0.000138,3]
[331873815,1720806741494,509.69,0.00010961,2]
[331873816,1720806750222,377.4709,0.00012956,2]
[331873817,1720806752650,1000.0,0.00012863,2]
[331873818,1720806759754,1108.442,0.00012924,2]
[331873819,1720806803485,3000.0,0.00025008,120]
[331873820,1720806803892,1000.0,0.00026519,120]
[331873821,1720806805291,299.94931508,0.00012924,2]
[331873822,1720806826784,299.94931508,0.00012924,2]
[331873824,1720806914408,1816.06338292,0.00012821,2]
[331873825,1720806914435,478.86661708,0.00012821,2]
[331873826,1720806921981,2223.2959686,0.00012273,2]
[331873827,1720806958996,7297.83741432,0.00012924,2]
[331873828,1720806959021,522.34854181,0.00012924,2]
[331873829,1720807003112,282.17,0.00012796,2]
[331873830,1720807023150,527.47467871,0.00012314,2]
[331873831,1720807024738,1367.58779488,0.00012924,2]
[331873832,1720807060774,612.78116451,0.00012314,2]
[331873833,1720807069323,323.08,0.00012759,2]
[331873834,1720807079423,294.14505741,0.00012314,2]
[331873835,1720807096171,411.3058269,0.00012314,2]
[331873836,1720807120118,175.41039267,0.00012314,2]
[331873837,1720807123775,155.74816455,0.00012314,2]
[331873838,1720807125474,202.90766565,0.00012314,2]
[331873839,1720807126416,155.50465982,0.00012314,2]
[331873840,1720807134770,155.0,0.00012314,2]
[331873841,1720807136338,155.0,0.00012314,2]
[331873842,1720807137054,389.0,0.0001299,2]
[331873843,1720807162517,250.0,0.00012757,2]
[331873844,1720807166341,155.0,0.00012314,2]
[331873845,1720807171570,192.06723149,0.00012314,2]
[331873847,1720807198333,378.07593941,0.00012314,2]
[331873848,1720807224924,176.15194033,0.00012314,2]
[331873849,1720807232606,156.16906047,0.00012314,2]
[331873850,1720807244657,298.51541728,0.00012314,2]
[331873851,1720807282010,200.0,0.00012767,2]
[331873852,1720807284212,297.10031396,0.00012314,2]
[331873853,1720807287479,155.27560506,0.00012314,2]
[331873854,1720807300128,499.99,0.00010856,2]
[331873855,1720807317863,205.54834643,0.00012314,2]
[331873856,1720807338077,2028.0,0.00025,60]
[331873857,1720807349725,347.38733372,0.00012314,2]
[331873858,1720807364853,305.72325685,0.00012314,2]
[331873860,1720807388552,167.83449486,0.00012314,2]
[331873861,1720807432692,287.52276223,0.00012314,2]
[331873862,1720807441556,198.174351,0.00012314,2]
[331873863,1720807441578,334.83691064,0.00012314,2]
[331873864,1720807443241,1631.34797349,0.00012302,2]
[331873865,1720807465162,438.35174148,0.00012314,2]
[331873868,1720807521423,151.12,0.00012528,2]
[331873869,1720807523639,544.74834431,0.00012314,2]
[331873879,1720807700885,158.64359351,0.00012314,2]
[331873885,1720807767530,250.0,0.00012762,2]
[331873887,1720807797595,489.98,0.0001061,2]
[331873888,1720807798018,489.98,0.00012874,2]
[331873889,1720807800185,2378.93432536,0.00011199,2]
[331873890,1720807827391,756.66831365,0.00012302,2]
[331873891,1720807831408,840.0,0.00012763,2]
[331873903,1720807832387,-661.67087631,0.00013024,2]
[331873904,1720807832397,-614.06474712,0.00013124,2]
[331873905,1720807832408,-360.67999992,0.00013124,2]
[331873906,1720807832420,-1240.42885296,0.00013124,2]
[331873907,1720807832429,-155.0,0.00013128,2]
[331873908,1720807832438,-1897.09319402,0.00013472,2]
[331873909,1720807832447,-155.43704552,0.00013516,2]
[331873910,1720807832456,-3330.88844114,0.00013598,2]
[331873911,1720807832470,-561.51132701,0.00013598,2]
[331873912,1720807832482,-639.12363185,0.00013598,2]
[331873913,1720807832492,-3763.6494,0.00013598,2]
[331873914,1720807832501,-150.0,0.00013632,2]
[331873915,1720807832510,-490.50834,0.0001366,2]
[331873916,1720807832520,-490.50834,0.0001368,2]
[331873917,1720807832529,-499.99,0.0001369,2]
[331873918,1720807832539,-849.23,0.0001369,2]
[331873919,1720807832548,-422.12399,0.0001369,2]
[331873920,1720807832558,-2195.64,0.00013697,2]
[331873921,1720807832568,-150.0,0.00013697,2]
[331873922,1720807832577,-2086.08164318,0.00013698,2]
[331873923,1720807832589,-97913.91835682,0.00013698,2]
[331873924,1720807832599,-302.0912,0.00013698,2]
[331873925,1720807832610,-270.76,0.00013699,2]
[331873927,1720807832619,-500.0,0.00013699,2]
[331873929,1720807832629,-372.68,0.00013699,2]
[331873931,1720807832638,-500.0,0.00013699,2]
[331873933,1720807832648,-500.0,0.00013699,2]
[331873935,1720807832658,-511.66,0.00013699,2]
[331873936,1720807832667,-500.0,0.00013699,2]
[331873937,1720807832677,-553.81032846,0.00013699,2]
[331873938,1720807832686,-571.16,0.00013699,2]
[331873939,1720807832696,-500.0,0.00013699,2]
[331873940,1720807832705,-500.0,0.00013699,2]
[331873941,1720807832715,-500.0,0.00013699,2]
[331873942,1720807832725,-500.0,0.00013699,2]
[331873943,1720807832734,-413.67,0.00013699,2]
[331873944,1720807832744,-499.09030016,0.00013699,2]
[331873945,1720807832753,-500.0,0.00013699,2]
[331873946,1720807832762,-500.0,0.00013699,2]
[331873947,1720807832771,-491.17968116,0.00013699,2]
[331873948,1720807832781,-497.89,0.00013699,2]
[331873949,1720807832790,-500.0,0.00013699,2]
[331873950,1720807832800,-500.0,0.00013699,2]
[331873951,1720807832809,-1270.67,0.00013699,2]
[331873952,1720807832819,-500.0,0.00013699,2]
[331873953,1720807832828,-449.59,0.00013699,2]
[331873954,1720807832838,-520.12,0.00013699,2]
[331873955,1720807832848,-435.29,0.00013699,2]
[331873956,1720807832858,-635.05348005,0.00013699,2]
[331873957,1720807832867,-1034.29,0.00013699,2]
[331873958,1720807832877,-575.24068533,0.00013699,2]
[331873959,1720807832886,-500.0,0.00013699,2]
[331873960,1720807832895,-500.0,0.00013699,2]
[331873961,1720807832905,-500.0,0.00013699,2]
[331873962,1720807832914,-1318.47,0.00013699,2]
[331873963,1720807832923,-155.0,0.00013699,2]
[331873964,1720807832932,-561.09,0.00013699,2]
[331873965,1720807832942,-308.15,0.00013699,2]
[331873966,1720807832952,-500.0,0.00013699,2]
[331873967,1720807832962,-500.0,0.00013699,2]
[331873968,1720807832972,-500.0,0.00013699,2]
[331873969,1720807832981,-500.0,0.00013699,2]
[331873970,1720807832991,-251.25,0.00013699,2]
[331873971,1720807833000,-500.0,0.00013699,2]
[331873972,1720807833009,-500.0,0.00013699,2]
[331873973,1720807833019,-500.0,0.00013699,2]
[331873974,1720807833029,-397.6,0.00013699,2]
[331873975,1720807833039,-544.93,0.00013699,2]
[331873976,1720807833048,-500.0,0.00013699,2]
[331873977,1720807833057,-500.0,0.00013699,2]
[331873978,1720807833067,-599.99736531,0.00013699,2]
[331873979,1720807833078,-500.0,0.00013699,2]
[331873980,1720807833088,-197.0402334,0.00013699,2]
[331873981,1720807833098,-500.0,0.00013699,2]
[331873982,1720807833107,-500.0,0.00013699,2]
[331873983,1720807833116,-500.0,0.00013699,2]
[331873984,1720807833126,-434.74094275,0.00013699,2]
[331873985,1720807833135,-406.62,0.00013699,2]
[331873986,1720807833145,-500.0,0.00013699,2]
[331873987,1720807833155,-500.0,0.00013699,2]
[331873988,1720807833164,-168.21,0.00013699,2]
[331873989,1720807833174,-500.0,0.00013699,2]
[331873990,1720807833183,-193.1,0.00013699,2]
[331873991,1720807833193,-162957.4205,0.000137,2]
[331873992,1720807833203,-23939.4306,0.000137,2]
[331873993,1720807833213,-160.20384158,0.00013709,2]
[331873994,1720807833223,-321.25915808,0.00013709,2]
[331873995,1720807833233,-5000.0,0.00013719,2]
[331873996,1720807833243,-3271.13086808,0.00013719,2]
[331873997,1720807833252,-462.24258694,0.00013719,2]
[331873998,1720807833261,-490.50834,0.0001372,2]
[331873999,1720807833271,-156.06582334,0.00013736,2]
[331874000,1720807833280,-500.0,0.00013754,2]
[331874001,1720807833290,-500.0,0.00013754,2]
[331874002,1720807833302,-500.0,0.00013754,2]
[331874003,1720807833312,-500.0,0.00013754,2]
[331874004,1720807833322,-616.59,0.00013754,2]
[331874005,1720807833331,-500.0,0.00013754,2]
[331874006,1720807833342,-500.0,0.00013754,2]
[331874007,1720807833352,-500.0,0.00013754,2]
[331874008,1720807833362,-500.0,0.00013754,2]
[331874009,1720807833372,-158.86,0.00013754,2]
[331874010,1720807833383,-342.27590131,0.00013754,2]
[331874011,1720807833392,-500.0,0.00013754,2]
[331874012,1720807833402,-1270.67,0.00013754,2]
[331874013,1720807833412,-329.04,0.00013754,2]
[331874014,1720807833421,-1034.29,0.00013754,2]
[331874015,1720807833430,-500.0,0.00013754,2]
[331874016,1720807833440,-549.4,0.00013754,2]
[331874017,1720807833449,-500.0,0.00013754,2]
[331874018,1720807833459,-1318.47,0.00013754,2]
[331874019,1720807833470,-561.09,0.00013754,2]
[331874020,1720807833480,-646.17019241,0.00013754,2]
[331874021,1720807833489,-185.66,0.00013754,2]
[331874022,1720807833499,-500.0,0.00013754,2]
[331874023,1720807833508,-500.0,0.00013754,2]
[331874024,1720807833517,-500.0,0.00013754,2]
[331874025,1720807833526,-156.41,0.00013754,2]
[331874026,1720807833536,-500.0,0.00013754,2]
[331874027,1720807833547,-517.4,0.00013754,2]
[331874028,1720807833556,-500.0,0.00013754,2]
[331874029,1720807833566,-500.0,0.00013754,2]
[331874030,1720807833576,-500.0,0.00013754,2]
[331874031,1720807833585,-500.0,0.00013754,2]
[331874032,1720807833595,-500.0,0.00013754,2]
[331874033,1720807833604,-500.0,0.00013754,2]
[331874034,1720807833614,-500.0,0.00013754,2]
[331874035,1720807833623,-150.0,0.00013755,2]
[331874036,1720807833632,-173.47322396,0.00013759,2]
[331874037,1720807833642,-546.61,0.00013797,2]
[331874038,1720807833651,-336.43290958,0.00013797,2]
[331874039,1720807833660,-500.0,0.00013797,2]
[331874040,1720807833669,-500.0,0.00013797,2]
[331874041,1720807833679,-256.17,0.00013797,2]
[331874042,1720807833688,-421.58,0.00013797,2]
[331874043,1720807833697,-337.51,0.00013797,2]
[331874044,1720807833706,-544.79,0.00013797,2]
[331874045,1720807833716,-500.0,0.00013797,2]
[331874046,1720807833726,-350.25,0.00013797,2]
[331874047,1720807833735,-271.35,0.00013797,2]
[331874048,1720807833744,-275.15,0.00013797,2]
[331874049,1720807833754,-500.0,0.00013798,2]
[331874050,1720807833763,-503.21,0.00013798,2]
[331874051,1720807833772,-500.0,0.00013798,2]
[331874052,1720807833782,-500.0,0.00013798,2]
[331874053,1720807833791,-500.0,0.00013798,2]
[331874054,1720807833800,-500.0,0.00013798,2]
[331874055,1720807833809,-544.41994893,0.00013798,2]
[331874056,1720807833819,-543.34,0.00013798,2]
[331874057,1720807833828,-157.79,0.00013798,2]
[331874058,1720807833837,-500.0,0.00013798,2]
[331874059,1720807833847,-500.0,0.00013798,2]
[331874060,1720807833856,-500.0,0.00013798,2]
[331874061,1720807833865,-500.0,0.00013798,2]
[331874062,1720807833875,-500.0,0.00013798,2]
[331874063,1720807833884,-500.0,0.00013798,2]
[331874064,1720807833894,-531.85,0.00013798,2]
[331874065,1720807833903,-218.65,0.00013798,2]
[331874066,1720807833913,-500.0,0.00013798,2]
[331874067,1720807833923,-500.0,0.00013798,2]
[331874068,1720807833932,-577.47074728,0.00013798,2]
[331874069,1720807833941,-500.0,0.00013798,2]
[331874070,1720807833951,-500.0,0.00013798,2]
[331874071,1720807833961,-191.09,0.00013798,2]
[331874072,1720807833975,-500.0,0.00013798,2]
[331874073,1720807833985,-500.0,0.00013798,2]
[331874074,1720807833994,-500.0,0.00013798,2]
[331874075,1720807834004,-405.58,0.00013798,2]
[331874076,1720807834014,-256.96,0.00013798,2]
[331874077,1720807834023,-500.0,0.00013798,2]
[331874078,1720807834033,-500.0,0.00013798,2]
[331874079,1720807834043,-590.5,0.00013798,2]
[331874080,1720807834052,-150.85,0.00013798,2]
[331874081,1720807834062,-193.8987776,0.00013798,2]
[331874082,1720807834072,-500.0,0.00013798,2]
[331874083,1720807834082,-500.0,0.00013798,2]
[331874084,1720807834092,-150.0,0.00013799,2]
[331874085,1720807834102,-1427.03957973,0.00013799,2]
[331874086,1720807834111,-1427.03957968,0.00013799,2]
[331874087,1720807834120,-155.0,0.000138,2]
[331874088,1720807834130,-150.0,0.000138,2]
[331874089,1720807834140,-150.0,0.000138,2]
[331874090,1720807834149,-849.27,0.000138,2]
[331874091,1720807834158,-854.69,0.000138,2]
[331874092,1720807834167,-490.50834,0.000138,2]
[331874093,1720807834176,-490.50834,0.000138,2]
[331874094,1720807834186,-87274.3770068,0.000138,3]
[331874095,1720807834195,-298.55704507,0.00013802,2]
[331874096,1720807834204,-500.0,0.00013809,2]
[331874097,1720807834213,-335.39,0.00013809,2]
[331874098,1720807834225,-389.61,0.00013809,2]
[331874099,1720807834234,-598.3418681,0.00013809,2]
[331874100,1720807834243,-398.09,0.00013809,2]
[331874101,1720807834252,-207.65,0.00013809,2]
[331874102,1720807834262,-500.0,0.00013809,2]
[331874103,1720807834271,-500.0,0.00013809,2]
[331874104,1720807834280,-500.0,0.00013809,2]
[331874105,1720807834289,-1270.67,0.00013809,2]
[331874106,1720807834301,-1034.29,0.00013809,2]
[331874107,1720807834311,-500.0,0.00013809,2]
[331874108,1720807834320,-500.0,0.00013809,2]
[331874109,1720807834330,-1318.47,0.00013809,2]
[331874110,1720807834339,-561.09,0.00013809,2]
[331874111,1720807834350,-500.0,0.00013809,2]
[331874112,1720807834359,-500.0,0.00013809,2]
[331874113,1720807834370,-500.0,0.00013809,2]
[331874114,1720807834379,-500.0,0.00013809,2]
[331874115,1720807834388,-500.0,0.00013809,2]
[331874116,1720807834397,-500.0,0.00013809,2]
[331874117,1720807834406,-500.0,0.00013809,2]
[331874118,1720807834415,-500.0,0.00013809,2]
[331874119,1720807834425,-500.0,0.00013809,2]
[331874120,1720807834434,-500.0,0.00013809,2]
[331874121,1720807834443,-500.0,0.00013809,2]
[331874122,1720807834452,-2815.30248409,0.00013842,3]
[331874123,1720807834461,-5630.60496818,0.00013843,3]
[331874124,1720807834472,-11261.2099364,0.00013844,3]
[331874125,1720807834481,-888.65243698,0.00013849,2]
[331874126,1720807834490,-518.04242089,0.00013849,2]
[331874127,1720807834499,-422.124,0.0001385,2]
[331874128,1720807834508,-500.0,0.00013852,2]
[331874129,1720807834517,-500.0,0.00013852,2]
[331874130,1720807834526,-896.13,0.00013853,2]
[331874131,1720807834535,-500.0,0.00013853,2]
[331874132,1720807834544,-500.0,0.00013853,2]
[331874133,1720807834553,-330.03713642,0.00013853,2]
[331874134,1720807834562,-500.0,0.00013853,2]
[331874135,1720807834571,-500.0,0.00013853,2]
[331874136,1720807834580,-500.0,0.00013853,2]
[331874137,1720807834589,-636.34,0.00013853,2]
[331874138,1720807834598,-376.49,0.00013853,2]
[331874139,1720807834607,-500.0,0.00013853,2]
[331874140,1720807834616,-503.06,0.00013853,2]
[331874141,1720807834625,-500.0,0.00013853,2]
[331874142,1720807834634,-500.0,0.00013853,2]
[331874143,1720807834643,-500.0,0.00013853,2]
[331874144,1720807834652,-165.31,0.00013853,2]
[331874145,1720807834661,-500.0,0.00013853,2]
[331874146,1720807834670,-500.0,0.00013853,2]
[331874147,1720807834679,-500.0,0.00013853,2]
[331874148,1720807834851,-500.0,0.00013853,2]
[331874149,1720807834863,-385.29,0.00013853,2]
[331874150,1720807834872,-5630.60496818,0.00013854,3]
[331874151,1720807834881,-500.0,0.00013864,2]
[331874152,1720807834891,-500.0,0.00013864,2]
[331874153,1720807834900,-553.42501257,0.00013864,2]
[331874154,1720807834909,-500.0,0.00013864,2]
[331874155,1720807834919,-1270.67,0.00013864,2]
[331874156,1720807834928,-1034.29,0.00013864,2]
[331874157,1720807834937,-500.0,0.00013864,2]
[331874158,1720807834947,-500.0,0.00013864,2]
[331874159,1720807834956,-1318.47,0.00013864,2]
[331874160,1720807834966,-561.09,0.00013864,2]
[331874161,1720807834976,-500.0,0.00013864,2]
[331874162,1720807834986,-334.42187952,0.00013864,2]
[331874163,1720807834998,-500.0,0.00013864,2]
[331874164,1720807835007,-500.0,0.00013864,2]
[331874165,1720807835017,-500.0,0.00013864,2]
[331874166,1720807835026,-500.0,0.00013864,2]
[331874167,1720807835035,-500.0,0.00013864,2]
[331874168,1720807835044,-500.0,0.00013864,2]
[331874169,1720807835053,-500.0,0.00013864,2]
[331874170,1720807835062,-500.0,0.00013864,2]
[331874171,1720807835071,-500.0,0.00013864,2]
[331874172,1720807835080,-2815.30248409,0.00013878,3]
[331874173,1720807835089,-179.71335243,0.00013881,2]
[331874174,1720807835098,-500.0,0.00013887,2]
[331874175,1720807835107,-200.0,0.00013887,2]
[331874176,1720807835116,-476.38893337,0.00013888,2]
[331874177,1720807835130,-23.61106663,0.00013888,2]
[331874178,1720807835139,-500.0,0.00013888,2]
[331874179,1720807835148,-200.0,0.00013888,2]
[331874180,1720807835158,-380.85826154,0.00013889,2]
[331874181,1720807835174,-1046.18131814,0.00013889,2]
[331874182,1720807835183,-66.55707538,0.00013899,2]
[331874183,1720807835194,-135.58349592,0.00013899,2]
[331874184,1720807835203,-155.0,0.00013899,2]
[331874185,1720807835213,-557.55227967,0.000139,2]
[331874186,1720807835224,-286.08144362,0.000139,2]
[331874187,1720807835233,-104.88180579,0.000139,2]
[331874188,1720807835244,-94.42644013,0.000139,2]
[331874189,1720807835254,-329.21981699,0.00013907,2]
[331874190,1720807835263,-500.0,0.00013907,2]
[331874191,1720807835272,-362.67616271,0.00013908,2]
[331874192,1720807835284,-533.45383729,0.00013908,2]
[331874193,1720807835294,-500.0,0.00013908,2]